bitfinex-derivatives/quotes_SOLF0:USTF0_20250923
["timestamp","ask_amount","ask_price","bid_price","bid_amount"]
[1758639691578,5.28940227,217.28,217.19,135.6308]
[1758639691779,1.15010227,217.27,217.19,11.6708]
[1758639691981,1.15010227,217.27,217.19,4.1408]
[1758639692581,1.15010227,217.27,217.18,131.45]
[1758639693479,1.15010227,217.26,217.22,128.1604]
[1758639693780,7.48,217.32,217.22,128.1604]
[1758639693982,1.15047604,217.31,217.22,128.1604]
[1758639694274,7.48,217.32,217.22,128.1604]
[1758639694275,1.15046765,217.3,217.22,123.96]
[1758639694583,1.15046774,217.29,217.18,7.53]
[1758639694783,1.15046774,217.28,217.19,123.9]
[1758639694976,1.15046774,217.27,217.19,123.9]
[1758639695175,7.48,217.32,217.2,4.1408]
[1758639695176,4.1391,217.29,217.2,4.1408]
[1758639695375,1.15059228,217.28,217.2,4.1408]
[1758639695677,1.15059228,217.27,217.2,4.1408]
[1758639695876,64.3661,217.36,217.22,4.1404]
[1758639696076,4.31188479,217.35,217.19,123.9]
[1758639696272,64.3747,217.33,217.2,123.82]
[1758639696477,4.31188479,217.32,217.2,123.82]
[1758639696680,4.31188479,217.31,217.21,123.84]
[1758639696878,4.31188479,217.3,217.21,123.84]
[1758639697182,1.15054183,217.29,217.21,123.84]
[1758639697375,1.15054183,217.28,217.21,123.84]
[1758639697576,64.3747,217.33,217.21,123.84]
[1758639697773,4.1389,217.3,217.17,64.4205]
[1758639697974,64.3747,217.33,217.16,62.0]
[1758639697975,4.31510048,217.29,217.16,62.0]
[1758639698182,4.31510048,217.28,217.17,123.74]
[1758639698485,4.31510048,217.27,217.17,123.76]
[1758639698683,4.3143345,217.26,217.13,64.4335]
[1758639698881,1.15050927,217.25,217.15,4.1416]
[1758639699077,1.15050927,217.25,217.08,64.4468]
[1758639699277,4.31351342,217.24,217.09,123.66]
[1758639699479,4.31351342,217.23,217.1,64.4426]
[1758639699674,4.31351342,217.22,217.1,64.4426]
[1758639699881,1.15050927,217.21,217.13,4.1421]
[1758639700081,4.1402,217.24,217.11,123.72]
[1758639700283,1.15091962,217.23,217.13,64.4334]
[1758639700481,6.31501935,217.28,217.13,64.4334]
[1758639700680,4.31314971,217.27,217.13,64.4334]
[1758639700892,1.1508281,217.26,217.15,64.4277]
[1758639701079,84.23201491,217.33,217.15,64.4277]
[1758639701282,4.31370872,217.32,217.15,126.4277]
[1758639701581,4.1393,217.28,217.2,4.1408]
[1758639701780,4.31370872,217.27,217.2,4.1408]
[1758639701982,1.1507195,217.26,217.18,127.7011]
[1758639702182,84.23201491,217.33,217.15,62.0]
[1758639702183,64.3863,217.29,217.15,62.0]
[1758639702383,10.62694303,217.28,217.14,107.08]
[1758639702586,4.1401,217.24,217.14,4.1419]
[1758639702784,6.31501935,217.28,217.14,4.1419]
[1758639703090,4.31057272,217.27,217.14,4.1419]
[1758639703283,4.31057272,217.26,217.13,107.08]
[1758639703483,4.31057272,217.25,217.13,107.08]
[1758639703782,1.15087769,217.24,217.13,107.08]
[1758639703985,1.15087769,217.23,217.14,123.58]
[1758639704182,6.31501935,217.28,217.07,64.4513]
[1758639704183,64.3951,217.26,217.07,64.4513]
[1758639704381,4.1404,217.22,217.13,4.1419]
[1758639705185,4.1408,217.21,217.1,123.44]
[1758639705378,64.4013,217.24,217.1,123.44]
[1758639705586,4.30615513,217.23,217.1,123.44]
[1758639705786,1.15101984,217.22,217.1,123.44]
[1758639705985,64.4013,217.24,217.08,62.0]
[1758639706187,4.141,217.2,217.11,4.1423]
[1758639706794,4.1404,217.22,217.12,4.1421]
[1758639707093,6.31501935,217.28,217.11,64.439]
[1758639707390,4.3046883,217.27,217.11,64.439]
[1758639707591,4.3046883,217.26,217.11,64.439]
[1758639707890,1.15089842,217.25,217.14,64.4301]
[1758639708092,6.31501935,217.31,217.16,64.4243]
[1758639708390,4.30579813,217.3,217.16,64.4243]
[1758639708689,418.56401935,217.35,217.17,187.7409]
[1758639708886,4.30614057,217.34,217.17,187.7409]
[1758639709092,4.139,217.3,217.22,4.1402]
[1758639709985,64.3832,217.3,217.16,123.18]
[1758639710690,4.14,217.25,217.16,123.18]
[1758639711088,4.14,217.25,217.12,64.436]
[1758639711291,4.14,217.25,217.17,4.1412]
[1758639711597,4.1395,217.27,217.14,64.4289]
[1758639711788,14.08106634,217.34,217.16,64.4244]
[1758639711990,4.30929266,217.33,217.16,64.4244]
[1758639712185,4.30929266,217.33,217.15,64.4274]
[1758639712186,4.30929266,217.32,217.14,62.0]
[1758639712486,64.3922,217.27,217.14,62.0]
[1758639712691,64.3922,217.27,217.13,122.18]
[1758639712894,64.3975,217.26,217.08,6.31501935]
[1758639713201,64.3975,217.26,217.1,123.16]
[1758639713399,4.1408,217.21,217.12,4.1421]
[1758639714097,4.1403,217.23,217.12,123.12]
[1758639714600,4.1403,217.23,217.09,64.4446]
[1758639714799,4.1406,217.21,217.14,4.1418]
[1758639715202,64.3922,217.27,217.14,4.1418]
[1758639715394,4.31041426,217.26,217.14,4.1418]
[1758639715595,64.3922,217.27,217.14,4.1418]
[1758639715795,4.3112361,217.26,217.14,4.1418]
[1758639716102,64.3864,217.29,217.12,64.4346]
[1758639716299,4.31142139,217.28,217.17,64.4205]
[1758639716594,64.375,217.33,217.18,122.92]
[1758639716800,64.375,217.33,217.14,64.4302]
[1758639716801,4.31357622,217.32,217.15,64.4263]
[1758639716995,4.31357622,217.32,217.14,64.4302]
[1758639716996,4.31357622,217.31,217.16,64.4243]
[1758639717195,1.15065948,217.3,217.22,4.1404]
[1758639717400,64.3729,217.34,217.22,4.1404]
[1758639717600,4.31669391,217.33,217.21,64.4088]
[1758639717797,0.70658396,217.39,217.26,4.1395]
[1758639718098,4.31691901,217.38,217.26,4.1395]
[1758639718292,4.31691901,217.37,217.26,4.1395]
[1758639718492,4.31691901,217.36,217.26,4.1395]
[1758639718701,14.53561491,217.39,217.26,4.1395]
[1758639718899,4.1379,217.36,217.26,4.1395]
[1758639719396,4.137,217.4,217.27,64.3914]
[1758639719591,4.3218549,217.39,217.27,64.3914]
[1758639719902,4.137,217.4,217.27,64.3914]
[1758639720096,1.15009825,217.39,217.27,64.3914]
[1758639720296,100.76587502,217.41,217.31,4.1385]
[1758639720498,4.32483679,217.4,217.28,64.3873]
[1758639720698,4.32483679,217.39,217.32,4.1383]
[1758639720899,100.76587502,217.41,217.32,4.1383]
[1758639721201,0.16328,217.41,217.34,4.1381]
[1758639721596,0.16328,217.41,217.3,6.31501935]
[1758639721798,0.16328,217.41,217.31,122.58]
[1758639722105,0.16328,217.41,217.32,64.3768]
[1758639722503,0.16328,217.41,217.35,4.1379]
[1758639722809,0.16328,217.41,217.35,126.6779]
[1758639723107,0.16328,217.41,217.37,4.1374]
[1758639723603,0.16328,217.41,217.35,126.6777]
[1758639723809,0.16328,217.41,217.35,122.54]
[1758639724203,0.16328,217.41,217.39,4.137]
[1758639724511,4.1346,217.53,217.38,64.3592]
[1758639724805,4.31802658,217.52,217.39,64.3553]
[1758639724999,4.1346,217.53,217.39,64.3553]
[1758639725200,4.31813278,217.52,217.4,64.3527]
[1758639725400,4.1346,217.53,217.4,64.3527]
[1758639725702,4.134,217.56,217.43,4.1363]
[1758639725903,4.31476531,217.55,217.38,6.31501935]
[1758639726103,4.31476531,217.54,217.39,105.48]
[1758639726407,64.3127,217.54,217.38,4.1372]
[1758639726609,64.3127,217.54,217.39,122.24]
[1758639726610,64.3178,217.52,217.39,122.24]
[1758639726799,64.3178,217.52,217.39,184.24]
[1758639726995,64.3007,217.58,217.39,248.5954]
[1758639726996,13.91404798,217.57,217.39,248.5954]
[1758639727205,68.61893473,217.56,217.39,248.5954]
[1758639727507,4.1347,217.52,217.39,4.137]
[1758639727699,0.72537606,217.59,217.42,64.3471]
[1758639727899,4.1341,217.55,217.39,64.3562]
[1758639728100,64.3047,217.57,217.42,4.1364]
[1758639728307,64.3047,217.57,217.43,122.14]
[1758639729105,1.14930403,217.56,217.44,64.3403]
[1758639729299,64.2813,217.65,217.46,64.3348]
[1758639729503,4.1333,217.6,217.5,4.1349]
[1758639729798,64.2889,217.62,217.5,122.04]
[1758639730003,4.1336,217.58,217.5,122.08]
[1758639730207,64.2972,217.59,217.49,122.08]
[1758639730712,1.1491489,217.58,217.46,122.06]
[1758639730912,64.2945,217.6,217.46,122.06]
[1758639731206,1.14910007,217.59,217.46,122.06]
[1758639731507,64.2945,217.6,217.46,122.06]
[1758639731704,4.1341,217.55,217.47,122.0]
[1758639732003,64.2914,217.61,217.47,121.98]
[1758639732206,128.5483,217.67,217.48,122.0]
[1758639732404,64.2794,217.65,217.48,122.0]
[1758639732709,128.5483,217.67,217.49,122.04]
[1758639732710,65.43118447,217.64,217.49,122.04]
[1758639732911,4.1329,217.62,217.49,122.04]
[1758639733107,64.2824,217.64,217.46,64.3344]
[1758639733404,64.2886,217.62,217.49,4.1352]
[1758639733606,64.2945,217.6,217.43,64.3441]
[1758639733809,64.2914,217.61,217.43,64.3441]
[1758639734011,64.2914,217.61,217.44,122.04]
[1758639734614,64.3038,217.57,217.45,122.04]
[1758639735005,64.3038,217.57,217.43,4.1362]
[1758639735212,64.3038,217.57,217.44,62.86]
[1758639735409,64.2914,217.61,217.44,62.86]
[1758639735609,65.44357442,217.6,217.45,4.1359]
[1758639735912,4.134,217.56,217.44,127.2007]
[1758639736412,4.134,217.56,217.44,64.3407]
[1758639736706,4.1335,217.59,217.49,4.1352]
[1758639737106,4.1338,217.57,217.48,4.1354]
[1758639737713,4.1338,217.57,217.48,121.82]
[1758639738213,64.3063,217.56,217.4,347.64]
[1758639738410,64.31,217.55,217.4,347.64]
[1758639738714,4.1351,217.5,217.41,121.82]
[1758639739010,64.3221,217.51,217.4,347.64]
[1758639739314,4.136,217.46,217.4,347.64]
[1758639739615,4.1362,217.45,217.4,347.64]
[1758639740108,64.306,217.56,217.4,347.64]
[1758639740310,64.3151,217.53,217.35,64.3661]
[1758639740513,64.3151,217.53,217.41,121.86]
[1758639741210,64.3092,217.55,217.41,121.86]
[1758639741514,64.3124,217.54,217.36,62.0]
[1758639741715,4.1352,217.5,217.41,4.1368]
[1758639742015,4.1352,217.5,217.37,121.8]
[1758639742211,4.1354,217.49,217.41,4.1366]
[1758639742516,64.3214,217.51,217.36,62.0]
[1758639742715,64.3214,217.51,217.37,121.78]
[1758639743112,64.3274,217.49,217.36,66.1375]
[1758639743312,64.3274,217.49,217.37,121.78]
[1758639743512,4.1358,217.46,217.36,4.1375]
[1758639743711,4.1358,217.46,217.37,121.72]
[1758639744118,4.1358,217.46,217.37,125.8573]
[1758639744512,64.3127,217.54,217.37,121.72]
[1758639744713,64.3154,217.53,217.41,4.1367]
[1758639745511,4.1354,217.49,217.4,57.76]
[1758639745712,64.3302,217.48,217.32,68.38946423]
[1758639745911,64.3327,217.47,217.34,121.6]
[1758639746118,4.1368,217.41,217.32,68.38946423]
[1758639746316,4.1368,217.41,217.33,121.7]
[1758639746718,4.1371,217.4,217.33,121.7]
[1758639746922,64.3453,217.43,217.32,68.38946423]
[1758639747119,64.3453,217.43,217.32,190.00946423]
[1758639747320,64.3423,217.44,217.32,190.00946423]
[1758639747524,64.346,217.43,217.32,68.38946423]
[1758639747824,4.1381,217.35,217.26,121.64]
[1758639748022,64.3449,217.43,217.26,121.64]
[1758639748221,64.3475,217.42,217.27,121.76]
[1758639748626,64.3568,217.39,217.26,4.1394]
[1758639748822,64.3568,217.39,217.27,121.76]
[1758639749023,4.1383,217.33,217.24,4.14]
[1758639749329,4.1383,217.33,217.24,125.86]
[1758639749928,4.1373,217.39,217.24,186.1199]
[1758639750229,4.1373,217.39,217.25,64.3977]
[1758639751028,4.1373,217.39,217.27,64.3917]
[1758639751223,4.1373,217.39,217.26,64.3946]
[1758639751425,4.1373,217.39,217.31,4.1387]
[1758639751627,64.3402,217.45,217.31,4.1387]
[1758639751824,1.14993297,217.44,217.31,4.1387]
[1758639752026,1.14993297,217.43,217.31,79.9387]
[1758639752226,1.14993297,217.43,217.31,75.8]
[1758639752227,4.1373,217.39,217.31,75.8]
[1758639752528,4.1373,217.39,217.24,64.3998]
[1758639752728,64.3495,217.42,217.24,64.3998]
[1758639752929,1.14999895,217.41,217.25,121.52]
[1758639753130,4.1368,217.41,217.31,4.1386]
[1758639753518,64.3476,217.42,217.24,64.3998]
[1758639753719,1.14997413,217.41,217.28,81.52]
[1758639753918,64.3424,217.44,217.28,81.52]
[1758639753919,64.345,217.43,217.28,81.52]
[1758639754118,65.49757413,217.42,217.28,81.52]
[1758639754326,1.14997413,217.41,217.28,143.52]
[1758639754632,64.3476,217.42,217.28,81.52]
[1758639754829,1.14994117,217.41,217.3,4.1387]
[1758639755025,0.69656232,217.48,217.31,64.3795]
[1758639755330,4.30037172,217.47,217.31,64.3795]
[1758639755520,1.14981691,217.46,217.31,64.3795]
[1758639755721,1.14981691,217.45,217.32,7.16]
[1758639755928,1.14981691,217.44,217.33,7.16]
[1758639756129,7.16,217.46,217.33,7.16]
[1758639756527,1.14972513,217.45,217.34,4.138]
[1758639756824,7.16,217.46,217.33,7.16]
[1758639757029,4.1364,217.44,217.35,4.1377]
[1758639757625,4.1368,217.41,217.33,132.5582]
[1758639758533,4.1371,217.4,217.33,7.16]
[1758639759428,4.1373,217.39,217.33,7.16]
[1758639760334,11.2967,217.42,217.33,7.16]
[1758639761032,11.2967,217.42,217.33,128.36]
[1758639761229,1.14980836,217.41,217.34,4.1381]
[1758639761430,4.1364,217.43,217.34,4.1381]
[1758639761733,7.16,217.46,217.34,7.16]
[1758639761933,1.14974945,217.45,217.34,7.16]
[1758639762235,1.14974945,217.44,217.34,7.16]
[1758639762528,7.16,217.42,217.34,128.16]
[1758639762734,1.14974945,217.41,217.32,121.02]
[1758639763034,1.14974945,217.4,217.32,121.02]
[1758639763234,7.16,217.42,217.32,121.02]
[1758639763428,1.14980841,217.41,217.3,7.16]
[1758639763731,7.16,217.42,217.31,121.0]
[1758639763932,1.14980841,217.41,217.31,121.0]
[1758639764127,4.1373,217.39,217.31,121.0]
[1758639764332,4.1373,217.39,217.31,120.98]
[1758639764522,7.16,217.42,217.31,120.98]
[1758639764725,1.14989127,217.41,217.34,4.1379]
[1758639765025,64.3279,217.49,217.33,7.16]
[1758639765226,4.136,217.45,217.38,4.1372]
[1758639765436,1.1498083,217.44,217.37,7.16]
[1758639765634,1.1498083,217.43,217.37,7.16]
[1758639765823,64.3339,217.47,217.35,4.1378]
[1758639766025,11.48321808,217.46,217.35,58.26]
[1758639766229,7.16,217.46,217.36,7.16]
[1758639767339,11.2958,217.46,217.37,4.1375]
[1758639767540,7.16,217.46,217.36,7.16]
[1758639767839,4.32370745,217.45,217.35,120.8]
[1758639768140,3.17392426,217.44,217.33,7.16]
[1758639768333,64.3534,217.4,217.26,7.16]
[1758639768536,10.33203229,217.39,217.27,120.8]
[1758639768738,7.16,217.36,217.26,7.16]
[1758639768942,64.3724,217.34,217.19,57.54]
[1758639769241,64.3724,217.34,217.2,7.16]
[1758639769538,4.1391,217.29,217.21,4.1404]
[1758639770935,4.1385,217.32,217.22,4.1402]
[1758639771135,7.16,217.33,217.2,127.98]
[1758639771332,7.16,217.33,217.2,189.98]
[1758639771534,7.16,217.33,217.2,127.98]
[1758639772531,4.1388,217.31,217.23,4.14]
[1758639773243,11.2983,217.33,217.23,4.14]
[1758639773541,7.16,217.33,217.23,4.14]
[1758639774746,7.16,217.33,217.25,4.1398]
[1758639774933,7.16,217.33,217.22,64.4066]
[1758639775137,7.16,217.33,217.24,64.3991]
[1758639775338,7.66,217.41,217.25,7.49]
[1758639775741,4.1377,217.37,217.28,4.1392]
[1758639775937,11.7977,217.37,217.28,4.1392]
[1758639776643,7.66,217.37,217.3,4.1388]
[1758639776844,4.137,217.4,217.29,7.49]
[1758639777240,4.137,217.4,217.29,11.629]
[1758639777446,4.137,217.4,217.29,7.49]
[1758639778846,4.1373,217.39,217.29,7.49]
[1758639779250,72.0167,217.39,217.23,7.49]
[1758639779548,7.66,217.37,217.24,120.34]
[1758639780145,4.1381,217.35,217.27,4.1393]
[1758639780547,7.66,217.37,217.23,7.49]
[1758639780745,72.0235,217.37,217.25,4.1397]
[1758639780949,7.66,217.35,217.23,54.91]
[1758639781246,4.1383,217.33,217.24,4.1399]
[1758639781438,7.66,217.35,217.24,4.1399]
[1758639781842,4.1388,217.31,217.23,7.49]
[1758639782042,7.66,217.35,217.23,7.49]
[1758639782445,7.66,217.35,217.24,4.1399]
[1758639782644,3.17129139,217.34,217.24,4.1399]
[1758639782843,7.66,217.35,217.24,4.1399]
[1758639783144,4.1388,217.31,217.24,4.1399]
[1758639783545,4.1385,217.32,217.24,4.1399]
[1758639783746,4.1385,217.32,217.25,4.1396]
[1758639784046,4.1388,217.31,217.23,7.49]
[1758639784744,4.1383,217.33,217.23,7.49]
[1758639785143,7.66,217.35,217.23,7.49]
[1758639785343,4.1388,217.31,217.23,11.6301]
[1758639785848,7.66,217.32,217.23,11.6301]
[1758639786349,11.7985,217.32,217.23,11.6301]
[1758639786746,7.66,217.32,217.23,11.6301]
[1758639787348,4.1388,217.31,217.23,11.6301]
[1758639787752,7.66,217.32,217.23,7.49]
[1758639788852,4.1388,217.31,217.25,4.1397]
[1758639789246,4.1388,217.31,217.23,7.49]
[1758639789551,7.66,217.32,217.23,7.49]
[1758639790645,2.46743247,217.31,217.23,7.49]
[1758639790851,4.139,217.3,217.23,11.6301]
[1758639791048,2.46743247,217.31,217.23,11.6301]
[1758639791248,2.46743247,217.27,217.17,9.99743247]
[1758639791556,9.80743247,217.25,217.17,11.6713]
[1758639792057,4.1402,217.24,217.17,11.6713]
[1758639792246,9.80743247,217.25,217.18,4.141]
[1758639792555,7.34,217.29,217.18,2.46743247]
[1758639792753,9.80743247,217.29,217.22,4.1403]
[1758639792951,9.80743247,217.29,217.21,7.53]
[1758639793255,6.60593247,217.32,217.26,4.1395]
[1758639793456,2.46743247,217.32,217.26,4.1395]
[1758639793752,2.46743247,217.32,217.21,64.4089]
[1758639793753,10.51730284,217.31,217.21,2.46743247]
[1758639793956,7.34,217.31,217.22,7.53]
[1758639794254,2.46743247,217.32,217.22,7.53]
[1758639794452,2.46743247,217.32,217.23,4.1401]
[1758639794656,7.34,217.31,217.23,4.1401]
[1758639795050,7.34,217.31,217.22,7.53]
[1758639795749,7.34,217.37,217.22,7.53]
[1758639795949,4.32286874,217.36,217.22,7.53]
[1758639796146,3.17246399,217.35,217.22,7.53]
[1758639796345,3.17246399,217.34,217.24,64.3994]
[1758639796560,7.34,217.37,217.25,7.53]
[1758639797153,3.17290506,217.36,217.25,7.53]
[1758639797351,7.34,217.35,217.25,7.53]
[1758639797748,7.34,217.33,217.21,62.0]
[1758639797949,7.34,217.33,217.21,78.14]
[1758639798148,4.1393,217.28,217.22,4.1403]
[1758639798555,7.34,217.33,217.22,4.1403]
[1758639798756,7.34,217.33,217.2,7.53]
[1758639800662,4.1389,217.3,217.22,4.1402]
[1758639800854,7.34,217.33,217.2,71.9418]
[1758639801053,71.922262,217.44,217.2,71.9418]
[1758639801054,7.34,217.39,217.2,64.4118]
[1758639801250,71.918162,217.46,217.28,6.32675635]
[1758639801251,4.32474781,217.38,217.28,6.32675635]
[1758639801451,7.34,217.46,217.32,7.53]
[1758639801852,7.34,217.46,217.32,13.85675635]
[1758639802053,11.476,217.46,217.37,4.1375]
[1758639802554,7.34,217.46,217.37,4.1375]
[1758639803453,7.34,217.46,217.39,4.1371]
[1758639803658,110.0084997,217.52,217.38,64.3585]
[1758639803962,3.1760737,217.51,217.38,64.3585]
[1758639804158,3.17598359,217.5,217.37,7.55]
[1758639804354,7.72,217.52,217.38,119.22]
[1758639804554,7.72,217.5,217.38,119.22]
[1758639804755,7.72,217.5,217.39,7.55]
[1758639805650,7.72,217.5,217.42,4.1365]
[1758639806658,11.8551,217.5,217.39,11.687]
[1758639806858,7.72,217.5,217.39,7.55]
[1758639807361,7.72,217.46,217.31,7.55]
[1758639807659,7.72,217.42,217.31,7.55]
[1758639807862,4.1373,217.39,217.31,7.55]
[1758639808566,7.72,217.39,217.26,11.6894]
[1758639809564,4.1382,217.34,217.26,7.55]
[1758639810762,4.1385,217.32,217.24,4.14]
[1758639810968,4.1385,217.32,217.21,131.2304]
[1758639811657,4.1385,217.32,217.21,127.09]
[1758639811859,11.858,217.35,217.23,4.1402]
[1758639812060,11.858,217.35,217.22,71.9559]
[1758639812861,11.858,217.35,217.23,119.5]
[1758639813066,11.858,217.35,217.24,4.14]
[1758639813764,11.858,217.35,217.23,119.5]
[1758639813964,11.858,217.35,217.12,78.47111209]
[1758639813965,64.3804,217.31,217.15,5.12836524]
[1758639814169,7.72,217.28,217.12,7.55]
[1758639814869,7.72,217.28,217.13,64.4332]
[1758639815069,7.72,217.28,217.14,7.55]
[1758639815271,7.72,217.28,217.16,4.1414]
[1758639816076,11.8593,217.28,217.18,4.1411]
[1758639816280,7.72,217.28,217.18,4.1411]
[1758639817566,7.72,217.28,217.2,4.1407]
[1758639817763,11.8586,217.32,217.18,71.9678]
[1758639817969,11.8586,217.32,217.18,191.4678]
[1758639818169,7.72,217.32,217.21,64.4088]
[1758639818373,7.72,217.32,217.22,64.4058]
[1758639818774,7.72,217.32,217.25,4.1398]
[1758639819079,4.1378,217.36,217.25,4.1398]
[1758639819380,4.1378,217.36,217.27,4.1394]
[1758639819776,4.1378,217.36,217.24,7.55]
[1758639820171,4.1381,217.34,217.24,7.55]
[1758639820674,7.72,217.35,217.24,7.55]
[1758639821272,7.72,217.35,217.27,4.1394]
[1758639821574,7.72,217.42,217.26,7.55]
[1758639821769,7.72,217.4,217.26,7.55]
[1758639821967,7.72,217.4,217.23,62.0]
[1758639822277,7.72,217.33,217.17,122.07]
[1758639822574,4.1387,217.31,217.19,4.1409]
[1758639822778,7.72,217.33,217.19,4.1409]
[1758639823173,64.3714,217.34,217.17,122.07]
[1758639823174,4.1395,217.27,217.18,119.62]
[1758639823374,4.1395,217.27,217.17,7.55]
[1758639825582,4.1395,217.27,217.18,4.1411]
[1758639826289,7.72,217.26,217.16,467.42]
[1758639826481,4.1398,217.25,217.16,467.42]
[1758639826786,7.72,217.26,217.16,474.97]
[1758639827680,7.72,217.33,217.19,4.1409]
[1758639827990,7.72,217.31,217.19,4.1409]
[1758639828191,7.72,217.27,217.16,359.5714]
[1758639828384,7.72,217.27,217.17,119.36]
[1758639829190,4.1396,217.26,217.18,119.34]
[1758639829689,7.72,217.27,217.19,4.1409]
[1758639829985,7.72,217.33,217.19,7.55]
[1758639830180,7.72,217.29,217.19,7.55]
[1758639830886,4.139,217.3,217.16,347.88]
[1758639830887,64.3923,217.27,217.16,347.88]
[1758639831091,7.72,217.26,217.13,120.32]
[1758639831497,7.72,217.26,217.14,7.55]
[1758639831992,7.72,217.26,217.16,4.1415]
[1758639832694,7.72,217.26,217.14,7.55]
[1758639832889,7.72,217.26,217.14,108.23]
[1758639833588,7.56,217.23,217.08,7.64]
[1758639833788,7.56,217.2,217.06,7.64]
[1758639833987,7.56,217.2,217.06,69.64]
[1758639834186,4.1411,217.19,217.06,7.64]
[1758639834584,4.1411,217.19,217.09,4.1428]
[1758639834994,4.1414,217.17,217.07,121.48]
[1758639835594,7.56,217.2,217.07,121.48]
[1758639835890,7.56,217.2,217.06,7.64]
[1758639836097,4.1412,217.18,217.07,121.42]
[1758639836390,7.56,217.17,217.01,121.42]
[1758639836594,7.56,217.17,217.02,7.64]
[1758639836798,11.7014,217.17,217.05,7.64]
[1758639837296,11.7014,217.17,217.06,121.4]
[1758639837690,4.1418,217.15,217.06,121.4]
[1758639838092,7.56,217.17,217.06,185.8536]
[1758639838296,7.56,217.17,217.07,7.64]
[1758639838998,7.56,217.17,217.08,121.42]
[1758639839802,7.56,217.17,217.1,4.1426]
[1758639840298,7.56,217.23,217.11,72.0783]
[1758639840603,7.56,217.23,217.15,4.1417]
[1758639841401,7.56,217.23,217.16,4.1413]
[1758639841602,0.70405371,217.27,217.16,7.64]
[1758639841903,7.56,217.28,217.21,4.1406]
[1758639842106,4.1387,217.32,217.18,7.64]
[1758639842298,21.10517765,217.32,217.18,7.64]
[1758639842600,7.56,217.32,217.25,4.1398]
[1758639842904,13.49871487,217.38,217.24,83.66]
[1758639843099,7.56,217.4,217.24,83.66]
[1758639843100,7.56,217.4,217.25,4.1396]
[1758639843298,4.1378,217.36,217.24,83.66]
[1758639843905,4.1378,217.36,217.24,87.8]
[1758639844499,64.3686,217.35,217.23,7.64]
[1758639844698,71.9286,217.35,217.23,7.64]
[1758639845404,4.1385,217.32,217.23,7.64]
[1758639845606,7.56,217.35,217.23,7.64]
[1758639845904,4.1385,217.32,217.23,7.64]
[1758639846600,7.56,217.35,217.23,72.0437]
[1758639846805,13.65164436,217.38,217.24,7.64]
[1758639847008,7.56,217.39,217.24,7.64]
[1758639847401,11.6972,217.39,217.29,11.779]
[1758639847599,7.56,217.43,217.29,11.779]
[1758639848102,4.1368,217.41,217.31,4.1387]
[1758639848504,4.1368,217.41,217.3,121.1]
[1758639848902,7.56,217.43,217.3,121.1]
[1758639849207,7.56,217.43,217.32,4.1385]
[1758639849606,4.1366,217.42,217.33,7.64]
[1758639850206,7.56,217.43,217.34,4.1381]
[1758639850610,4.1361,217.45,217.33,7.64]
[1758639850809,11.6956,217.48,217.36,4.1377]
[1758639851110,71.8906,217.48,217.36,7.64]